bitfinex/quotes_ETHUSD_20241122
["timestamp","ask_amount","ask_price","bid_price","bid_amount"]
[1732265756830,0.7866,3370.7,3369.8,0.2958]
[1732265757030,0.81626249,3370.7,3369.8,0.2958]
[1732265757345,0.49526019,3370.6,3369.8,0.2958]
[1732265757750,3.12079625,3371.5,3370.0,0.2958]
[1732265757751,0.7866,3371.1,3370.0,0.2958]
[1732265758424,0.7866,3371.1,3370.2,0.2958]
[1732265758765,3.756,3371.6,3370.4,0.2958]
[1732265758766,0.8115,3371.4,3370.4,0.2958]
[1732265758923,0.756,3371.6,3370.6,0.2958]
[1732265759124,0.02966249,3371.5,3370.6,0.2958]
[1732265760359,0.8319,3371.4,3370.6,0.2958]
[1732265760559,0.02966249,3371.3,3370.6,0.2958]
[1732265761039,0.8319,3371.4,3370.6,0.2958]
[1732265761355,0.15879,3371.3,3370.6,0.2958]
[1732265762350,0.02966249,3371.2,3370.6,0.2958]
[1732265762758,0.15879,3371.3,3370.6,0.2958]
[1732265765271,0.02966249,3371.2,3370.6,0.2958]
[1732265766178,0.02966249,3371.2,3370.7,0.2958]
[1732265766356,0.50476234,3371.2,3370.7,0.2958]
[1732265766553,0.7723,3370.8,3370.7,0.2958]
[1732265767952,1.3743,3371.1,3370.7,0.2958]
[1732265768155,0.8243,3371.1,3370.7,0.2958]
[1732265768483,0.82184984,3371.1,3370.8,0.2958]
[1732265768780,3.73064603,3371.2,3370.8,0.2958]
[1732265769389,0.4501646,3371.1,3370.9,0.2958]
[1732265769550,0.771,3371.4,3370.9,0.2958]
[1732265770502,0.771,3371.4,3371.0,0.2958]
[1732265770673,4.48664603,3371.6,3371.0,0.2958]
[1732265770988,4.48664603,3371.6,3371.2,0.2958]
[1732265770989,0.756,3371.6,3371.2,0.2958]
[1732265771147,0.756,3371.6,3371.3,0.7636]
[1732265771354,0.756,3371.6,3371.4,0.2958]
[1732265772659,4.54534603,3372.4,3371.4,0.2958]
[1732265772862,1.2181346,3372.3,3371.4,0.2958]
[1732265773992,0.7636,3372.3,3371.5,1.0791]
[1732265775976,0.02966249,3372.2,3371.5,1.0791]
[1732265776377,0.7636,3372.3,3371.5,1.0791]
[1732265777469,0.7636,3372.3,3371.5,1.48701]
[1732265778471,0.7636,3372.3,3371.6,0.0296552]
[1732265778916,0.7636,3372.3,3371.5,1.48701]
[1732265779067,0.7636,3372.3,3371.6,0.0296563]
[1732265779468,0.7636,3372.3,3371.5,1.0791]
[1732265780211,0.7636,3372.3,3371.6,0.2958]
[1732265780212,0.8143,3372.1,3371.6,0.2958]
[1732265780411,0.53382085,3372.0,3371.6,0.2958]
[1732265781279,0.53382085,3372.0,3371.3,0.2958]
[1732265781686,3.76030852,3371.9,3371.3,0.2958]
[1732265781903,0.8151,3371.5,3371.3,0.2958]
[1732265782104,0.4545746,3371.4,3370.7,0.2958]
[1732265782273,3.73064603,3371.2,3370.4,0.2958]
[1732265782477,0.02966249,3371.1,3370.4,0.2958]
[1732265782977,3.76030852,3371.2,3370.4,0.2958]
[1732265783181,4.2681492,3371.2,3370.4,0.2958]
[1732265783410,4.54574603,3371.5,3370.5,0.02966897]
[1732265783613,4.54574603,3371.5,3369.9,0.2958]
[1732265783912,0.8151,3371.5,3370.5,0.2958]
[1732265784097,0.8196,3371.8,3370.9,0.2958]
[1732265784305,0.45799085,3371.7,3370.9,0.2958]
[1732265784505,0.48765334,3371.7,3370.9,0.2958]
[1732265786594,4.21829937,3371.7,3370.9,0.2958]
[1732265786912,3.76030852,3371.7,3370.9,0.2958]
[1732265788106,3.76030852,3371.7,3371.0,0.2958]
[1732265788107,0.7688,3371.2,3371.0,0.2958]
[1732265789127,0.79846249,3371.2,3370.5,0.2958]
[1732265789409,3.73064603,3370.9,3370.5,0.2958]
[1732265789579,0.02966249,3370.8,3370.5,0.2958]
[1732265790213,3.73064603,3370.6,3370.5,0.2958]
[1732265790512,3.76030852,3370.6,3370.5,0.2958]
[1732265790711,3.73064603,3370.6,3370.5,0.2958]
[1732265790918,3.76030852,3370.6,3370.5,0.2958]
[1732265791080,4.21760937,3370.6,3369.4,0.2958]
[1732265791620,4.21760937,3370.6,3369.6,0.2958]
[1732265792327,0.50303094,3370.5,3369.6,0.2958]
[1732265792478,0.02966249,3370.4,3369.7,0.2958]
[1732265792678,3.76030852,3370.6,3369.7,0.2958]
[1732265792918,3.73064603,3370.6,3369.7,0.2958]
[1732265793088,4.18498063,3370.6,3369.9,0.2958]
[1732265793602,0.4543346,3370.6,3369.9,0.2958]
[1732265794217,0.8127,3370.7,3369.9,0.2958]
[1732265794588,0.02966249,3370.6,3369.9,0.2958]
[1732265795619,0.02966249,3370.6,3370.0,0.2958]
[1732265795795,0.48696334,3370.6,3370.0,0.2958]
[1732265796480,0.48696334,3370.6,3369.6,0.2958]
[1732265796884,0.48696334,3370.6,3369.6,3.2958]
[1732265797299,4.54484603,3370.1,3369.6,0.2958]
[1732265797493,0.48414709,3370.0,3369.6,0.2958]
[1732265797751,0.4544846,3370.0,3369.6,0.2958]
[1732265797947,4.54484603,3370.1,3369.6,0.2958]
[1732265799814,0.8142,3370.1,3369.6,0.2958]
[1732265800924,0.7514,3370.4,3369.6,0.2958]
[1732265801751,0.7514,3370.8,3369.7,0.32547421]
[1732265801917,0.7514,3370.8,3370.1,0.2958]
[1732265803546,0.7514,3370.8,3370.6,4.592435]
[1732265803763,0.7514,3370.8,3370.7,0.2958]
[1732265804217,0.7514,3370.8,3370.6,4.295935]
[1732265804417,1.2046046,3370.7,3370.6,4.295835]
[1732265804658,1.2046046,3370.7,3370.6,4.591635]
[1732265805550,1.7546046,3370.7,3370.6,4.295835]
[1732265808140,4.7213446,3370.7,3370.6,4.295835]
[1732265808547,1.7546046,3370.7,3370.6,4.295835]
[1732265809242,1.7546046,3370.7,3370.6,3.999735]
[1732265809955,1.7546046,3370.7,3370.6,4.295535]
[1732265812019,1.2046046,3370.7,3370.6,4.295535]
[1732265812220,0.7564,3370.7,3370.6,4.295535]
[1732265820396,1.3064,3370.7,3370.6,4.295535]
[1732265820893,7.27314,3370.7,3370.6,4.295535]
[1732265821318,7.27314,3370.7,3369.3,0.5096]
[1732265821319,2.96727,3370.1,3369.3,0.5096]
[1732265821491,2.96727,3370.1,3367.9,0.01]
[1732265821492,3.73064603,3369.7,3369.4,0.2958]
[1732265821699,0.02966249,3369.6,3369.4,0.2958]
[1732265822298,0.7897,3369.5,3368.4,0.2958]
[1732265822613,3.73064603,3369.1,3368.4,0.2958]
[1732265822814,0.02966249,3369.0,3368.4,0.2958]
[1732265823126,3.73064603,3369.1,3368.4,0.2958]
[1732265823293,3.73064603,3369.1,3368.5,0.2958]
[1732265823505,3.76030852,3369.4,3368.5,0.2958]
[1732265823703,4.22324997,3369.4,3368.5,0.2958]
[1732265823897,0.02966249,3369.3,3368.5,0.2958]
[1732265824401,3.73064603,3369.4,3368.6,0.8367]
[1732265824803,3.76030852,3369.4,3368.6,0.8367]
[1732265824990,4.21530937,3369.4,3368.6,0.8367]
[1732265825733,3.73064603,3369.4,3368.6,0.8367]
[1732265826997,0.02966249,3369.3,3368.6,0.8367]
[1732265827595,3.73064603,3369.4,3368.6,0.8367]
[1732265827802,3.73064603,3369.7,3369.1,0.2958]
[1732265828297,0.37603085,3369.6,3369.1,0.2958]
[1732265830338,3.76030852,3369.7,3369.1,0.2958]
[1732265830530,3.73064603,3369.7,3369.1,0.2958]
[1732265831945,0.02966249,3369.6,3369.1,0.2958]
[1732265836852,3.73064603,3369.7,3369.1,0.2958]
[1732265838857,0.02966249,3369.6,3369.1,0.2958]
[1732265839211,0.02966249,3369.6,3368.6,3.0]
[1732265839212,0.02966249,3369.6,3369.3,0.2958]
[1732265841153,3.73064603,3369.7,3369.3,0.2958]
[1732265844054,0.80486249,3370.3,3369.3,0.2958]
[1732265844254,0.80486249,3370.3,3368.3,0.01]
[1732265844255,3.73064603,3370.7,3369.8,0.2958]
[1732265844426,3.73064603,3370.4,3369.8,0.2958]
[1732265844623,0.37603085,3370.3,3369.8,0.2958]
[1732265844868,3.73064603,3370.4,3369.8,0.2958]
[1732265845025,3.73064603,3371.0,3370.2,0.2958]
[1732265845365,4.18179688,3371.0,3370.4,0.2958]
[1732265845532,3.73064603,3371.0,3370.4,0.2958]
[1732265848131,3.73064603,3371.3,3370.4,0.2958]
[1732265848472,0.45739085,3371.2,3370.6,0.2958]
[1732265849461,0.45739085,3371.2,3370.8,0.5409]
[1732265849669,0.45739085,3371.2,3370.9,0.2958]
[1732265849836,0.41880369,3371.1,3370.9,0.2958]
[1732265850413,3.76030852,3371.6,3370.9,0.2958]
[1732265850713,3.73064603,3371.3,3370.5,0.2958]
[1732265850854,0.02966249,3371.2,3370.5,0.2958]
[1732265851055,0.37603085,3371.1,3370.5,0.2958]
[1732265852854,0.02966249,3371.6,3370.4,0.5409]
[1732265852855,3.73064603,3371.6,3370.7,0.2958]
[1732265853088,3.73064603,3371.6,3370.9,0.2958]
[1732265853259,0.4531746,3371.5,3370.9,0.2958]
[1732265856053,0.4531746,3371.5,3370.1,0.59434154]
[1732265856054,0.4531746,3371.5,3370.7,0.2958]
[1732265856295,0.02966249,3371.8,3371.1,0.2958]
[1732265856498,0.4555771,3371.7,3371.1,0.2958]
[1732265857355,3.73064603,3371.5,3371.1,0.2958]
[1732265857556,0.02966249,3371.4,3371.1,0.2958]
[1732265858638,3.73064603,3371.5,3371.1,0.2958]
[1732265858943,3.73064603,3371.2,3370.8,0.2958]
[1732265859143,3.73064603,3370.9,3370.8,0.2958]
[1732265859810,3.73064603,3370.9,3370.4,0.2958]
[1732265860510,0.02966249,3370.8,3370.4,0.2958]
[1732265860909,3.73064603,3370.9,3370.4,0.2958]
[1732265861102,0.3730646,3370.8,3370.4,0.2958]
[1732265861302,0.02966249,3371.1,3370.4,0.2958]
[1732265861866,3.73064603,3371.2,3370.4,0.2958]
[1732265862011,0.4496346,3371.1,3370.4,0.2958]
[1732265862879,0.02966249,3371.0,3370.4,0.2958]
[1732265863056,3.73064603,3371.2,3370.4,0.2958]
[1732265863354,0.02966249,3371.1,3370.4,0.2958]
[1732265863513,3.73064603,3371.2,3370.4,0.2958]
[1732265863708,4.18028063,3371.2,3370.4,0.2958]
[1732265863916,0.02966249,3371.1,3370.4,0.2958]
[1732265865154,4.13028063,3371.2,3370.4,0.2958]
[1732265867227,4.13028063,3371.2,3370.5,0.2958]
[1732265867430,0.02966249,3371.1,3370.7,0.2958]
[1732265868446,3.68064603,3371.2,3370.7,0.2958]
[1732265871260,3.73064603,3371.6,3370.7,0.2958]
[1732265871462,3.73064603,3371.6,3370.8,0.8367]
[1732265872450,0.7893,3371.1,3370.7,0.196]
[1732265872790,3.73064603,3370.8,3370.7,0.196]
[1732265882716,0.7893,3371.1,3370.7,0.196]
[1732265883781,0.81896249,3371.1,3370.7,0.196]
[1732265885614,0.7893,3371.1,3370.7,0.196]
[1732265885772,0.81896249,3371.1,3370.7,0.196]
[1732265886113,3.73064603,3371.2,3370.7,0.196]
[1732265886323,0.45496085,3371.0,3370.7,0.196]
[1732265887115,0.45496085,3371.0,3369.3,0.35469924]
[1732265887116,0.45496085,3371.0,3370.9,0.0962]
[1732265887333,0.7748,3371.5,3370.9,0.0962]
[1732265888770,3.73064603,3371.6,3370.9,0.0962]
[1732265888973,3.73064603,3371.6,3369.7,0.01]
[1732265888974,3.73064603,3371.2,3370.6,0.2959]
[1732265889170,3.73064603,3371.2,3369.3,0.5409]
[1732265889171,4.54174603,3370.4,3369.3,0.5409]
[1732265889603,0.02966249,3370.3,3369.3,0.5409]
[1732265889811,0.48680334,3370.3,3369.3,0.5409]
[1732265890216,0.48680334,3370.3,3369.4,0.2959]
[1732265890716,3.73064603,3370.0,3369.4,0.2959]
[1732265891321,0.48680334,3370.3,3369.7,0.2959]
[1732265891479,4.54174603,3370.4,3369.7,0.2959]
[1732265891894,3.73064603,3370.4,3369.7,0.2959]
[1732265892093,4.51594603,3370.8,3370.1,0.2959]
[1732265892320,3.73064603,3370.8,3370.1,0.2959]
[1732265892600,4.18224063,3370.8,3370.1,0.2959]
[1732265892811,3.73064603,3370.8,3370.1,0.2959]
[1732265894330,0.02966249,3370.7,3370.1,0.2959]
[1732265895136,3.73064603,3370.8,3370.1,0.2959]
[1732265895293,0.02966249,3370.7,3370.1,0.2959]
[1732265897828,3.73064603,3370.8,3370.1,0.2959]
[1732265898133,4.18520688,3370.8,3370.1,0.2959]
[1732265898637,3.73064603,3370.4,3370.1,0.2959]
[1732265900510,0.02966249,3370.3,3370.1,0.2959]
[1732265900715,0.02966249,3370.3,3369.6,0.2959]
[1732265900918,0.02966249,3370.3,3369.8,0.2959]
[1732265901238,0.48771334,3370.3,3369.8,0.2959]
[1732265902114,0.48771334,3370.3,3369.9,0.2959]
[1732265902115,4.48254603,3370.0,3369.9,0.2959]
[1732265903508,3.73064603,3370.0,3369.9,0.2959]
[1732265905221,3.73064603,3370.0,3369.3,0.5409]
[1732265905222,3.73064603,3370.0,3369.4,0.2959]
[1732265905436,0.02966249,3370.8,3369.6,0.2959]
[1732265905437,3.73064603,3370.4,3369.6,0.2959]
[1732265905649,0.02966249,3370.3,3369.6,0.2959]
[1732265906142,3.73064603,3370.4,3369.6,0.2959]
[1732265906639,0.02966249,3370.3,3369.6,0.2959]
[1732265906877,3.76030852,3370.4,3369.6,0.2959]
[1732265907030,4.20856312,3370.4,3369.6,0.2959]
[1732265907226,3.73064603,3370.0,3369.6,0.2959]
[1732265909390,4.51234603,3370.0,3369.6,0.2959]
[1732265910857,3.73064603,3370.0,3369.6,0.2959]
[1732265911065,0.02966249,3369.9,3369.6,0.2959]
[1732265911269,4.18096063,3370.0,3369.6,0.2959]
[1732265914578,0.02966249,3369.9,3369.2,0.2959]
[1732265914794,0.41809606,3369.9,3369.2,0.2959]
[1732265915080,3.73064603,3370.0,3369.2,0.2959]
[1732265915437,0.02966249,3369.9,3369.2,0.2959]
[1732265917143,3.73064603,3370.0,3369.2,0.2959]
[1732265917473,3.73064603,3370.0,3369.1,0.2959]
[1732265917675,3.73064603,3370.0,3369.3,0.2959]
[1732265917975,0.02966249,3369.9,3369.3,0.2959]
[1732265918212,0.40569334,3369.9,3369.3,0.2959]
[1732265918382,3.73064603,3369.6,3369.3,0.2959]
[1732265918588,0.02966249,3369.5,3369.3,0.2959]
[1732265919214,0.02966249,3369.5,3368.8,0.2959]
[1732265919408,0.02966249,3369.5,3368.8,0.67958]
[1732265919623,0.02966249,3369.5,3368.8,0.2959]
[1732265920392,3.73064603,3369.6,3368.8,0.2959]
[1732265920720,0.02966249,3369.5,3368.8,0.2959]
[1732265920924,3.73064603,3369.6,3368.8,0.2959]
[1732265921080,3.76030852,3369.6,3368.8,0.2959]
[1732265921577,4.21270937,3369.6,3368.8,0.2959]
[1732265923994,0.8127,3369.5,3368.8,0.2959]
[1732265924235,0.02966249,3369.4,3368.8,0.2959]
[1732265924739,3.73064603,3369.2,3368.8,0.2959]
[1732265925615,3.73064603,3369.2,3368.2,0.8368]
[1732265925935,4.18794688,3369.2,3368.2,0.8368]
[1732265926433,0.8127,3369.1,3368.2,0.8368]
[1732265928840,0.02966249,3369.0,3368.2,0.8368]
[1732265931156,3.73064603,3368.8,3368.2,0.8368]
[1732265931357,0.02966249,3368.7,3368.2,0.8368]
[1732265933105,0.02966249,3368.7,3367.9,0.2959]
[1732265933226,0.817,3368.6,3367.9,0.2959]
[1732265933427,0.84666249,3368.6,3367.9,0.2959]
[1732265936038,0.817,3368.6,3367.9,0.2959]
[1732265937169,0.7578,3369.0,3368.1,0.2959]
[1732265937329,0.7578,3369.0,3368.3,0.2959]
[1732265938134,3.76030852,3368.9,3368.3,0.2959]
[1732265941474,3.73064603,3368.9,3368.3,0.2959]
[1732265942780,1.64643294,3369.0,3368.4,0.8368]
[1732265942933,0.7822,3369.4,3368.4,0.8368]
[1732265943134,0.7822,3369.4,3368.2,0.02968346]
[1732265943135,1.64643294,3369.2,3368.6,0.2959]
[1732265943734,1.64643294,3369.2,3368.8,0.2959]
[1732265945765,1.64643294,3368.9,3368.8,0.2959]
[1732265946900,3.47816091,3369.3,3368.8,0.2959]
[1732265947065,0.02966249,3369.2,3368.8,0.2959]
[1732265948063,0.02966249,3369.2,3368.4,0.2959]
[1732265948263,3.47816091,3369.3,3368.4,0.8368]
[1732265948493,3.47816091,3369.3,3368.4,1.22048]
[1732265948692,3.47816091,3369.3,3368.4,0.8368]
[1732265948902,0.02966249,3369.2,3368.4,0.8368]
[1732265950209,3.47816091,3369.3,3368.4,0.8368]
[1732265950366,0.02966249,3369.2,3368.4,0.8368]
[1732265953690,3.47816091,3369.3,3368.4,0.8368]
[1732265953890,3.47816091,3369.3,3367.8,0.63074395]
[1732265953891,3.47816091,3369.3,3368.6,0.2959]
[1732265954804,3.47816091,3369.7,3368.8,0.2959]
[1732265954981,3.47816091,3369.7,3369.0,0.2959]
[1732265955661,0.02966249,3369.6,3369.0,0.2959]
[1732265955815,3.47816091,3369.3,3369.0,0.2959]
[1732265955974,3.47816091,3369.3,3368.8,0.2959]
[1732265955975,3.5078234,3369.3,3368.8,0.2959]
[1732265956289,3.93572574,3369.3,3368.8,0.2959]
[1732265959729,4.22986091,3369.7,3368.8,0.2959]
[1732265960029,4.22986091,3369.7,3368.9,0.2959]
[1732265960187,3.47816091,3369.7,3369.1,0.2959]
[1732265961197,3.955237,3369.7,3369.1,0.2959]
[1732265961497,0.02966249,3369.6,3369.1,0.2959]
[1732265963035,3.955237,3369.7,3369.1,0.2959]
[1732265963189,3.47816091,3369.3,3368.7,0.2959]
[1732265963501,0.02966249,3369.2,3368.7,0.67958]
[1732265963707,3.47816091,3369.3,3368.7,0.2959]
[1732265966638,1.64643478,3369.2,3368.7,0.2959]
[1732265969144,1.64643478,3369.2,3368.9,0.2959]
[1732265970143,1.64643478,3369.2,3368.6,0.5409]
[1732265970144,1.64643478,3369.2,3368.7,0.2959]
[1732265970673,0.78506249,3369.1,3368.7,0.2959]
[1732265971442,0.7554,3369.1,3368.7,0.2959]
[1732265971603,0.02966249,3369.0,3368.7,0.2959]
[1732265971807,0.02966249,3369.0,3368.5,0.2959]
[1732265972641,0.78506249,3369.1,3368.5,0.2959]
[1732265974437,1.64643478,3368.9,3368.5,0.2959]
[1732265974640,1.64643478,3368.9,3368.6,0.2959]
[1732265975443,1.88661826,3368.9,3368.6,0.2959]
[1732265975656,0.02966249,3368.8,3368.2,0.2959]
[1732265976159,1.64643478,3368.9,3368.2,0.2959]
[1732265977221,0.02966249,3368.8,3368.2,0.2959]
[1732265977656,1.64643478,3368.9,3368.2,0.2959]
[1732265978455,1.64643478,3368.9,3368.2,0.3255863]
[1732265978653,1.64643478,3368.9,3368.2,0.2959]
[1732265978818,0.7554,3369.1,3368.2,0.2959]
[1732265979022,0.02966249,3369.1,3368.4,0.2959]
[1732265980522,1.64643478,3368.9,3368.4,0.2959]
[1732265980727,0.02966249,3368.8,3368.4,0.2959]
[1732265980953,0.82186249,3368.8,3368.4,0.2959]
[1732265982485,0.82186249,3368.8,3368.5,0.2959]
[1732265983257,1.06869222,3368.8,3368.5,0.2959]
[1732265983458,1.06869222,3368.8,3368.6,0.2959]
[1732265983768,0.82186249,3368.8,3368.6,0.2959]
[1732265984576,0.82186249,3368.8,3368.7,0.2959]
[1732265985275,0.7922,3368.8,3368.7,0.2959]
[1732265985604,0.82186249,3368.8,3368.1,0.2959]
[1732265985749,1.64643478,3368.5,3368.1,0.2959]
[1732265986465,1.64643478,3368.5,3367.9,0.2959]
[1732265986652,1.64643478,3368.5,3367.9,0.70896946]
[1732265988288,1.64643478,3368.5,3367.9,0.2959]
[1732265990858,1.64643478,3368.7,3368.1,0.2959]
[1732265993261,1.64643478,3368.7,3368.1,0.2959]
[1732265994164,0.02966249,3368.6,3368.1,0.2959]
[1732265994365,1.89029826,3368.7,3368.1,0.2959]
[1732265995776,0.02966249,3368.6,3368.1,0.2959]
[1732265996078,1.89029826,3368.7,3368.1,0.2959]
[1732265997198,0.02966249,3368.6,3368.1,0.2959]
[1732265997562,1.64643478,3368.7,3368.1,0.2959]
[1732265997900,0.02966249,3368.6,3368.1,0.2959]
[1732265999164,0.02966249,3368.6,3367.9,0.2959]
[1732266000668,0.02966249,3368.6,3367.8,0.5409]
[1732266000669,0.7922,3368.8,3368.1,0.2959]
[1732266000905,0.7922,3368.8,3368.1,0.78065757]
[1732266001142,0.7922,3368.8,3368.1,0.2959]
[1732266001636,0.7922,3368.8,3367.8,0.5409]
[1732266001637,0.7922,3368.8,3368.2,0.2959]
[1732266001841,0.7922,3368.8,3368.3,0.5409]
[1732266002152,0.7922,3368.8,3368.4,0.2959]
[1732266005506,0.02966249,3368.7,3368.0,0.2959]
[1732266005861,1.91996075,3368.7,3368.0,0.2959]
[1732266006038,1.67609727,3368.7,3368.0,0.2959]
[1732266006644,0.8177,3368.3,3368.1,0.2959]
[1732266006845,0.02966249,3368.2,3368.1,0.2959]
[1732266007208,0.83446249,3368.2,3368.1,0.2959]
[1732266007409,0.83446249,3368.2,3367.1,0.2959]
[1732266007720,1.64643478,3368.0,3367.1,0.2959]
[1732266008036,0.02966249,3367.9,3367.1,0.2959]
[1732266008962,0.7767,3367.8,3367.1,0.72495576]
[1732266009166,0.7767,3367.8,3367.2,0.2959]
[1732266009167,0.02966249,3367.7,3367.2,0.2959]
[1732266009368,0.7573,3367.5,3367.2,0.2959]
[1732266009672,0.02966249,3367.4,3367.2,0.2959]
[1732266010028,0.02966249,3367.4,3366.9,0.2959]
[1732266010443,1.64643478,3367.4,3366.9,0.2959]
[1732266010639,0.8261,3367.1,3366.9,0.2959]
[1732266010841,0.85576249,3367.1,3366.9,0.2959]
[1732266011071,0.8261,3367.1,3366.5,0.2959]
[1732266012140,0.02966249,3367.0,3366.3,0.2959]
[1732266012569,1.67609727,3367.0,3366.3,0.2959]
[1732266014743,1.64643478,3366.8,3366.4,0.2959]
[1732266014932,0.77986249,3366.7,3366.4,0.2959]
[1732266015635,0.7502,3366.7,3366.4,0.2959]
[1732266015965,0.7502,3366.7,3366.1,0.2959]
[1732266017469,0.77986249,3366.7,3366.1,0.2959]
[1732266017774,0.7502,3366.7,3366.1,0.2959]
[1732266019037,0.02966249,3366.6,3366.1,0.2959]
[1732266019533,0.7502,3366.7,3366.1,0.2959]
[1732266020113,0.7002,3366.7,3366.1,0.2959]
[1732266020406,0.7002,3366.7,3365.9,0.2959]
[1732266020610,1.64643478,3366.4,3365.9,0.2959]
[1732266021264,1.67609727,3366.6,3365.9,0.2959]
[1732266021489,1.67609727,3366.6,3365.7,0.2959]
[1732266021702,1.67609727,3366.6,3365.9,0.2959]
[1732266022008,1.67609727,3366.6,3365.9,0.8868]
[1732266022165,1.64643478,3366.6,3365.9,0.8868]
[1732266023012,1.64643478,3366.6,3365.7,0.8868]
[1732266023292,1.64643478,3366.4,3365.7,1.29453518]
[1732266024421,1.64643478,3366.4,3365.7,0.8868]
[1732266024585,0.7002,3366.7,3365.7,0.8868]
[1732266025202,0.7002,3366.7,3365.7,1.34055757]
[1732266025408,0.7002,3366.7,3366.2,0.2959]
[1732266026470,0.7002,3366.7,3366.2,0.32560653]
[1732266026681,0.7853,3367.7,3366.4,0.2959]
[1732266026898,2.43173478,3367.2,3366.4,0.2959]
[1732266027096,0.02966249,3367.8,3366.4,0.2959]
[1732266027097,0.7588,3367.8,3366.6,0.2959]
[1732266027302,1.64643478,3367.7,3366.8,0.2959]
[1732266027622,2.40523478,3367.8,3366.8,0.32559795]
[1732266028513,2.40903478,3367.1,3366.9,0.2959]
[1732266028815,1.64643478,3367.4,3366.9,0.2959]
[1732266029275,0.8302,3368.5,3366.9,0.2959]
[1732266029480,0.02966249,3368.6,3366.9,0.2959]
[1732266029481,1.64643478,3367.7,3366.9,0.2959]
[1732266029791,2.44433478,3367.7,3366.9,0.2959]
[1732266030111,0.02966249,3367.6,3366.9,0.2959]
[1732266031119,2.44433478,3367.7,3366.9,0.2959]
[1732266031410,0.02966249,3367.6,3366.9,0.2959]
[1732266031718,1.64643478,3367.4,3366.9,0.2959]
[1732266031874,0.02966249,3367.3,3366.9,0.2959]
[1732266032503,2.45573478,3367.1,3367.0,0.2959]
[1732266033881,2.45573478,3367.1,3367.0,0.20671225]
[1732266036689,4.29240541,3367.1,3367.0,0.20671225]
[1732266036897,4.72164595,3367.1,3367.0,0.20671225]
[1732266037986,4.75130844,3367.1,3367.0,0.20671225]
[1732266038942,4.72164595,3367.1,3367.0,0.20671225]
[1732266040357,4.75130844,3367.1,3367.0,0.20671225]
[1732266041074,4.72164595,3367.1,3367.0,0.20671225]
[1732266042875,4.75130844,3367.1,3367.0,0.20671225]
[1732266043678,4.72164595,3367.1,3367.0,0.20671225]
[1732266044051,4.72164595,3367.1,3366.1,0.875]
[1732266044052,4.72164595,3367.1,3366.2,0.2959]
[1732266044248,0.50182709,3367.0,3366.2,0.2959]
[1732266045558,0.786,3366.9,3366.2,0.2959]
[1732266048775,0.81566249,3366.9,3366.2,0.2959]
[1732266049780,0.786,3366.9,3366.2,0.2959]
[1732266050577,0.81566249,3366.9,3366.2,0.2959]
[1732266050784,1.29275574,3366.9,3366.2,0.2959]
[1732266053581,0.7688,3366.8,3366.2,0.2959]
[1732266053784,0.7688,3366.6,3366.2,0.2959]
[1732266053970,0.02966249,3366.5,3366.2,0.2959]
[1732266054350,0.42815679,3366.4,3366.2,0.2959]
[1732266054549,0.02966249,3366.3,3366.2,0.2959]
[1732266054750,0.7688,3366.6,3366.2,0.2959]
[1732266055547,0.02966249,3366.5,3366.2,0.2959]
[1732266056146,0.7688,3366.6,3366.2,0.2959]
[1732266058286,3.48310541,3366.7,3366.2,0.8868]
[1732266059390,0.7556,3366.9,3366.2,1.06298]
[1732266059587,4.27910541,3367.1,3366.2,1.06298]
[1732266060064,0.02966249,3367.0,3366.2,1.06298]
[1732266060386,0.02966249,3367.0,3366.2,0.8868]
[1732266060561,0.825,3366.6,3366.2,0.2959]
[1732266060767,0.02966249,3366.5,3366.2,0.2959]
[1732266061485,0.825,3366.6,3366.2,0.2959]
[1732266062595,3.48310541,3366.7,3366.2,0.2959]
[1732266063168,0.02966249,3367.3,3366.1,0.875]
[1732266063169,4.25040541,3367.1,3366.4,0.2959]
[1732266063491,0.02966249,3367.0,3366.4,0.2959]
[1732266063953,4.25040541,3367.1,3366.4,0.2959]
[1732266064682,0.02966249,3367.0,3366.4,0.2959]
[1732266064889,0.45830341,3366.9,3366.4,0.2959]
[1732266065057,0.02966249,3366.8,3366.4,0.2959]
[1732266065994,3.48310541,3366.7,3366.4,0.2959]
[1732266066556,3.48310541,3366.7,3366.2,0.2959]
[1732266066557,0.02966249,3366.6,3366.2,0.2959]
[1732266066758,0.39710713,3366.6,3366.2,0.2959]
[1732266066984,3.48310541,3366.7,3366.2,0.2959]
[1732266067359,3.5127679,3367.5,3366.6,0.2959]
[1732266067686,3.48310541,3367.5,3366.6,0.2959]
[1732266067874,0.34831054,3367.4,3366.6,0.2959]
[1732266071372,0.02966249,3367.0,3366.6,0.2959]
[1732266071567,0.38093928,3367.0,3366.6,0.2959]
[1732266071908,0.38093928,3367.0,3366.4,0.2959]
[1732266071909,3.48310541,3366.7,3366.4,0.2959]
[1732266072788,3.48310541,3366.7,3366.5,0.2959]
[1732266072974,0.34831054,3366.6,3366.5,0.2959]
[1732266074563,1.21077303,3366.6,3366.5,0.2959]
[1732266074763,1.21077303,3366.6,3366.2,0.2959]
[1732266076683,1.18111054,3366.6,3366.2,0.2959]
[1732266078675,0.02966249,3366.5,3366.2,0.2959]
[1732266079560,1.18111054,3366.6,3366.2,0.2959]
[1732266079777,3.48310541,3366.3,3366.1,1.1709]
[1732266080060,0.7715,3366.2,3366.1,0.8748]
[1732266081285,3.7715,3366.2,3366.1,0.8748]
[1732266081467,4.79697679,3366.2,3366.1,0.8748]
[1732266081672,4.82663928,3366.2,3366.1,0.8748]
[1732266082274,1.79697679,3366.2,3366.1,0.8748]
[1732266082513,0.7715,3366.2,3366.1,0.8748]
[1732266084767,3.48310541,3366.3,3366.1,0.8748]
[1732266084963,0.775,3366.4,3366.1,0.8748]
[1732266086104,0.775,3366.6,3366.1,0.8748]
[1732266086305,0.02966249,3366.8,3366.1,0.8748]
[1732266086306,0.775,3366.8,3366.3,0.2959]
[1732266086609,1.19233714,3366.8,3366.3,0.2959]
[1732266087109,0.02966249,3366.7,3366.3,0.2959]
[1732266087338,0.8302,3366.6,3365.7,0.2959]
[1732266087611,0.50569299,3366.5,3365.7,0.2959]
[1732266087967,0.7767,3366.3,3365.7,0.2959]